[Event "Romanian Women Championship 2024"]
[Site "Eforie Nord"]
[Date "2024.02.27"]
[Round "5.6"]
[White "Sunea, Sara Maria"]
[Black "Trifoi, Mihaela-Ioana"]
[Result "1/2-1/2"]
[ECO "B13"]
[WhiteElo "1561"]
[BlackElo "2003"]
[Annotator "NA RC"]
[PlyCount "105"]
[EventDate "2024.02.24"]
[EventType "swiss"]
[EventCountry "ROU"]
[SourceTitle "playchess.com"]
[Source "ChessBase"]
[SourceQuality "1"]
[TimeControl "40/5400+30:900+30"]

1. e4 {[%emt 0:00:03]} c6 {[%emt 0:00:08]} 2. d4 {[%emt 0:00:10]} d5 {[%emt 0:00:04]} 3. exd5 {[%emt 0:00:04]} cxd5 {[%emt 0:00:05]} 4. Bf4 {[%emt 0:00:05]} Nf6 {[%emt 0:00:12]} 5. c3 {[%emt 0:00:09]} Bg4 {[%emt 0:00:26]} 6. Qb3 {[%emt 0:00:56]} Qc8 {[%emt 0:00:22]} 7. Nd2 {[%emt 0:01:06]} e6 {[%emt 0:00:33]} 8. Ngf3 {[%emt 0:00:40]} Nc6 {[%emt 0:01:00]} 9. Bd3 {[%emt 0:01:13]} Be7 {[%emt 0:03:22]} 10. O-O {[%emt 0:01:56]} Bh5 {[%emt 0:02:46]} 11. Rae1 {[%emt 0:07:23]} Bg6 {[%emt 0:03:21]} 12. Qc2 {[%emt 0:04:08]} a6 {[%emt 0:02:32]} 13. Bxg6 {[%emt 0:04:06]} hxg6 {[%emt 0:00:07]} 14. Qd3 {[%emt 0:00:49]} b5 {[%emt 0:01:56]} 15. a3 {[%emt 0:01:13]} Qb7 {[%emt 0:00:34]} 16. Nb3 {[%emt 0:07:22]} O-O {[%emt 0:11:18]} 17. Nc5 {[%emt 0:06:20]} Bxc5 {[%emt 0:01:52]} 18. dxc5 {[%emt 0:00:15]} Ne4 {[%emt 0:00:05]} 19. b4 {[%emt 0:01:12]} a5 {[%emt 0:00:04]} 20. Nd4 {[%emt 0:08:05]} axb4 {[%emt 0:08:31]} 21. axb4 {[%emt 0:00:56]} Nxd4 {[%emt 0:02:52]} 22. Qxd4 {[%emt 0:05:08]} Ra3 {[%emt 0:08:02]} 23. f3 {[%emt 0:10:55]} Nf6 {[%emt 0:00:07]} 24. Be5 {[%emt 0:01:25]} Ne8 {[%emt 0:00:37]} 25. Bg3 {[%emt 0:07:13]} Qc6 {[%emt 0:04:59]} 26. Ra1 {[%emt 0:00:46]} Ra6 {[%emt 0:03:43]} 27. h3 {[%emt 0:04:13]} f6 {[%emt 0:01:22]} 28. Qd3 {[%emt 0:00:52]} Kf7 {[%emt 0:01:36]} 29. Qd1 {[%emt 0:01:41]} Rxa1 {[%emt 0:13:27]} 30. Qxa1 {[%emt 0:00:01]} Qb7 {[%emt 0:00:12]} 31. Rf2 {[%emt 0:01:13]} e5 {[%emt 0:11:15]} 32. Ra2 {[%emt 0:01:03]} Kg8 {[%emt 0:03:16]} 33. Ra7 {[%emt 0:02:16]} Qc6 {[%emt 0:03:31]} 34. Qa5 {[%emt 0:03:06]} Rf7 {[%emt 0:02:14]} 35. Ra6 {[%emt 0:03:20]} Qc8 {[%emt 0:02:42]} 36. Ra8 {[%emt 0:01:56]} Qd7 {[%emt 0:02:53]} 37. Qb6 {[%emt 0:02:41]} Kh7 {[%emt 0:01:27]} 38. Rd8 {[%emt 0:01:53]} Qe7 {[%emt 0:01:26]} 39. Qb8 {[%emt 0:01:06]} Rf8 {[%emt 0:00:07]} 40. c6 {[%emt 0:00:00]} Kg8 {[%emt 0:00:00]} 41. Bf2 {[%emt 0:10:38]} d4 {[%emt 0:09:01]} 42. cxd4 {[%emt 0:00:34]} exd4 {[%emt 0:00:11]} 43. Bxd4 {[%emt 0:00:49]} Qxb4 {[%emt 0:01:16]} 44. c7 {[%emt 0:03:04]} Nxc7 {[%emt 0:00:42]} 45. Rxf8+ {[%emt 0:00:14]} Qxf8 {[%emt 0:00:07]} 46. Qxc7 {[%emt 0:00:09]} Qe8 {[%emt 0:01:02]} 47. Qc3 {[%emt 0:01:21]} Qe6 {[%emt 0:01:27]} 48. Bf2 {[%emt 0:01:14]} g5 {[%emt 0:00:38]} 49. Qe3 {[%emt 0:00:38]} Qd7 {[%emt 0:00:26]} 50. Qd4 {[%emt 0:00:40]} Qc6 {[%emt 0:00:48]} 51. Qc5 {[%emt 0:00:18]} Qd7 {[%emt 0:00:09]} 52. Bg3 {[%emt 0:02:23]} Qd3 {[%emt 0:03:08]} 53. Qc8+ {[%emt 0:03:27]} 1/2-1/2

[Event "Romanian Women Championship 2024"]
[Site "Eforie Nord"]
[Date "2024.02.27"]
[Round "5.7"]
[White "Iordache, Alexia-Andreea"]
[Black "Maria, Lia-Alexandra"]
[Result "0-1"]
[ECO "B84"]
[WhiteElo "1769"]
[BlackElo "1937"]
[Annotator "NA RC"]
[PlyCount "78"]
[EventDate "2024.02.24"]
[EventType "swiss"]
[EventCountry "ROU"]
[SourceTitle "playchess.com"]
[Source "ChessBase"]
[SourceQuality "1"]
[TimeControl "40/5400+30:900+30"]

1. e4 {[%emt 0:00:04]} c5 {[%emt 0:00:05]} 2. Nf3 {[%emt 0:00:05]} d6 {[%emt 0:00:03]} 3. d4 {[%emt 0:00:04]} cxd4 {[%emt 0:00:04]} 4. Nxd4 {[%emt 0:00:04]} Nf6 {[%emt 0:00:06]} 5. Nc3 {[%emt 0:00:06]} a6 {[%emt 0:00:04]} 6. Be3 {[%emt 0:00:10]} e6 {[%emt 0:00:06]} 7. Be2 {[%emt 0:00:12]} Be7 {[%emt 0:13:02]} 8. g4 {[%emt 0:05:55]} h6 {[%emt 0:06:19]} 9. a4 {[%emt 0:03:13]} Nc6 {[%emt 0:00:37]} 10. Qd2 {[%emt 0:20:48]} Nd7 {[%emt 0:12:57]} 11. O-O-O {[%emt 0:08:00]} Qc7 {[%emt 0:08:10]} 12. Nb3 {[%emt 0:06:38]} Na5 {[%emt 0:05:41]} 13. Kb1 {[%emt 0:17:09]} Nc4 {[%emt 0:09:59]} 14. Bxc4 {[%emt 0:02:04]} Qxc4 {[%emt 0:00:08]} 15. Bd4 {[%emt 0:04:00]} O-O {[%emt 0:03:10]} 16. h4 {[%emt 0:06:54]} b5 {[%emt 0:05:37]} 17. a5 {[%emt 0:02:58]} b4 {[%emt 0:02:08]} 18. Na2 {[%emt 0:02:14]} Rb8 {[%emt 0:03:09]} 19. f3 {[%emt 0:01:39]} Nc5 {[%emt 0:02:38]} 20. Nac1 {[%emt 0:01:29]} Na4 {[%emt 0:05:33]} 21. Ne2 {[%emt 0:05:54]} e5 {[%emt 0:04:58]} 22. Be3 {[%emt 0:01:03]} Be6 {[%emt 0:00:04]} 23. Rhg1 {[%emt 0:05:10]} Rfc8 {[%emt 0:00:25]} 24. Qd3 {[%emt 0:04:33]} Qc6 {[%emt 0:01:44]} 25. Nec1 {[%emt 0:00:09]} Bc4 {[%emt 0:04:20]} 26. Qd2 {[%emt 0:00:05]} Qb5 {[%emt 0:00:26]} 27. Na2 {[%emt 0:01:35]} Be2 {[%emt 0:03:02]} 28. Rde1 {[%emt 0:01:02]} Bc4 {[%emt 0:02:39]} 29. Rd1 {[%emt 0:00:01]} d5 {[%emt 0:04:02]} 30. exd5 {[%emt 0:00:14]} Be2 {[%emt 0:02:28]} 31. Rde1 {[%emt 0:00:39]} Bxf3 {[%emt 0:00:17]} 32. Bf2 {[%emt 0:01:21]} Qc4 {[%emt 0:01:02]} 33. g5 {[%emt 0:00:44]} h5 {[%emt 0:00:31]} 34. Rxe5 {[%emt 0:00:22]} Bd6 {[%emt 0:00:13]} 35. Ree1 {[%emt 0:00:27]} Be4 {[%emt 0:00:42]} 36. Rc1 {[%emt 0:00:20]} Qxb3 {[%emt 0:00:08]} 37. Bd4 {[%emt 0:00:58]} Nc3+ {[%emt 0:00:15]} 38. Nxc3 {[%emt 0:00:14]} bxc3 {[%emt 0:00:04]} 39. Bxc3 {[%emt 0:00:03]} Rxc3 {[%emt 0:00:05]} 0-1

[Event "Romanian Women Championship 2024"]
[Site "Eforie Nord"]
[Date "2024.02.27"]
[Round "5.8"]
[White "Hoanca, Alexia-Ioana"]
[Black "Pirvulescu, Ekaterina"]
[Result "1-0"]
[ECO "B48"]
[WhiteElo "1748"]
[BlackElo "2091"]
[Annotator "NA RC"]
[PlyCount "101"]
[EventDate "2024.02.24"]
[EventType "swiss"]
[EventCountry "ROU"]
[SourceTitle "playchess.com"]
[Source "ChessBase"]
[SourceQuality "1"]
[TimeControl "40/5400+30:900+30"]

1. e4 {[%emt 0:00:30]} c5 {[%emt 0:00:16]} 2. Nf3 {[%emt 0:00:00]} e6 {[%emt 0:00:16]} 3. d4 {[%emt 0:00:00]} cxd4 {[%emt 0:00:06]} 4. Nxd4 {[%emt 0:00:00]} Nc6 {[%emt 0:00:08]} 5. Nc3 {[%emt 0:00:04]} Qc7 {[%emt 0:00:10]} 6. Be3 {[%emt 0:00:17]} a6 {[%emt 0:00:09]} 7. g4 {[%emt 0:00:18]} b5 {[%emt 0:00:27]} 8. Nxc6 {[%emt 0:00:53]} Qxc6 {[%emt 0:00:09]} 9. Qd2 {[%emt 0:00:14]} b4 {[%emt 0:00:12]} 10. Ne2 {[%emt 0:00:17]} Qxe4 {[%emt 0:00:05]} 11. Rg1 {[%emt 0:00:08]} Qc4 {[%emt 0:00:07]} 12. Ng3 {[%emt 0:00:47]} Qc7 {[%emt 0:00:05]} 13. O-O-O {[%emt 0:00:48]} Ne7 {[%emt 0:00:24]} 14. Nh5 {[%emt 0:01:22]} Nd5 {[%emt 0:01:05]} 15. Bd4 {[%emt 0:00:22]} Rg8 {[%emt 0:00:05]} 16. Bd3 {[%emt 0:01:41]} Bb7 {[%emt 0:01:53]} 17. Bxh7 {[%emt 0:01:37]} Rh8 {[%emt 0:00:04]} 18. Be4 {[%emt 0:00:14]} O-O-O {[%emt 0:00:56]} 19. Rge1 {[%emt 0:02:57]} Kb8 {[%emt 0:06:19]} 20. Kb1 {[%emt 0:07:57]} Rc8 {[%emt 0:03:25]} 21. h3 {[%emt 0:21:57]} Ka8 {[%emt 0:13:04]} 22. Qd3 {[%emt 0:07:48]} Qa5 {[%emt 0:10:39]} 23. Nxg7 {[%emt 0:05:33]} Rg8 {[%emt 0:15:48]} 24. Nh5 {[%emt 0:03:33]} Rg5 {[%emt 0:04:49]} 25. f4 {[%emt 0:20:43]} Nc3+ {[%emt 0:23:34]} 26. Bxc3 {[%emt 0:07:30]} bxc3 {[%emt 0:00:45]} 27. Bxb7+ {[%emt 0:00:23]} Kxb7 {[%emt 0:00:47]} 28. fxg5 {[%emt 0:00:38]} d5 {[%emt 0:03:11]} 29. Qe3 {[%emt 0:03:55]} Ba3 {[%emt 0:06:10]} 30. b3 {[%emt 0:01:29]} Bc5 {[%emt 0:02:25]} 31. Qf4 {[%emt 0:02:22]} Qa3 {[%emt 0:01:50]} 32. Qc1 {[%emt 0:00:07]} Qb4 {[%emt 0:00:04]} 33. Rf1 {[%emt 0:00:50]} Rc7 {[%emt 0:00:50]} 34. a3 {[%emt 0:04:11]} Qb6 {[%emt 0:01:31]} 35. Rf3 {[%emt 0:00:33]} d4 {[%emt 0:02:13]} 36. Rdf1 {[%emt 0:00:50]} Be7 {[%emt 0:00:57]} 37. Ka2 {[%emt 0:01:08]} e5 {[%emt 0:01:29]} 38. Rxf7 {[%emt 0:01:59]} e4 {[%emt 0:01:32]} 39. Rd1 {[%emt 0:01:15]} Qd6 {[%emt 0:01:04]} 40. Rxe7 {[%emt 0:00:00]} Rxe7 {[%emt 0:00:00]} 41. Qf4 {[%emt 0:05:37]} Qc5 {[%emt 0:02:39]} 42. Qf2 {[%emt 0:04:48]} e3 {[%emt 0:01:15]} 43. Qf3+ {[%emt 0:00:23]} Ka7 {[%emt 0:00:17]} 44. Ng3 {[%emt 0:00:26]} a5 {[%emt 0:03:15]} 45. a4 {[%emt 0:00:44]} Qe5 {[%emt 0:01:18]} 46. Ne2 {[%emt 0:01:09]} Rd7 {[%emt 0:01:03]} 47. Qf5 {[%emt 0:01:26]} Qc7 {[%emt 0:00:42]} 48. Qd3 {[%emt 0:01:52]} Qh2 {[%emt 0:01:28]} 49. Nxc3 {[%emt 0:00:47]} Qxh3 {[%emt 0:00:42]} 50. Nb5+ {[%emt 0:00:48]} Kb8 {[%emt 0:00:16]} 51. Qe4 {[%emt 0:01:14]} 1-0

[Event "Romanian Women Championship 2024"]
[Site "Eforie Nord"]
[Date "2024.02.27"]
[Round "5.9"]
[White "Sava, Ana-Maria"]
[Black "Sariteanu, Sabina"]
[Result "1-0"]
[ECO "D05"]
[WhiteElo "1916"]
[BlackElo "1700"]
[Annotator "NA RC"]
[PlyCount "107"]
[EventDate "2024.02.24"]
[EventType "swiss"]
[EventCountry "ROU"]
[SourceTitle "playchess.com"]
[Source "ChessBase"]
[SourceQuality "1"]
[TimeControl "40/5400+30:900+30"]

1. d4 {[%emt 0:00:04]} e6 {[%emt 0:06:56]} 2. Nf3 {[%emt 0:00:12]} d5 {[%emt 0:00:11]} 3. e3 {[%emt 0:00:07]} Nf6 {[%emt 0:00:57]} 4. Bd3 {[%emt 0:00:10]} c5 {[%emt 0:00:30]} 5. c3 {[%emt 0:00:09]} Nc6 {[%emt 0:00:13]} 6. Nbd2 {[%emt 0:00:33]} cxd4 {[%emt 0:05:06]} 7. exd4 {[%emt 0:00:57]} Bd6 {[%emt 0:00:24]} 8. O-O {[%emt 0:00:12]} O-O {[%emt 0:00:05]} 9. Re1 {[%emt 0:00:15]} Qc7 {[%emt 0:01:00]} 10. Nf1 {[%emt 0:01:08]} e5 {[%emt 0:01:40]} 11. dxe5 {[%emt 0:00:41]} Nxe5 {[%emt 0:00:10]} 12. Nxe5 {[%emt 0:00:45]} Bxe5 {[%emt 0:00:09]} 13. h3 {[%emt 0:02:12]} Bd7 {[%emt 0:01:55]} 14. Bg5 {[%emt 0:02:30]} h6 {[%emt 0:02:42]} 15. Be3 {[%emt 0:01:45]} Rfe8 {[%emt 0:00:32]} 16. Rc1 {[%emt 0:03:13]} Rad8 {[%emt 0:02:13]} 17. Nd2 {[%emt 0:04:37]} Ne4 {[%emt 0:01:03]} 18. Qb3 {[%emt 0:02:16]} Nxd2 {[%emt 0:21:22]} 19. Bxd2 {[%emt 0:00:18]} Qc8 {[%emt 0:00:39]} 20. Re3 {[%emt 0:04:49]} b6 {[%emt 0:11:00]} 21. Rce1 {[%emt 0:00:42]} Qc7 {[%emt 0:00:12]} 22. Qxd5 {[%emt 0:11:26]} Bf5 {[%emt 0:07:53]} 23. Qf3 {[%emt 0:06:46]} Bh2+ {[%emt 0:03:59]} 24. Kh1 {[%emt 0:00:17]} Rxe3 {[%emt 0:00:14]} 25. Rxe3 {[%emt 0:01:20]} Bxd3 {[%emt 0:02:36]} 26. Rxd3 {[%emt 0:00:53]} Rxd3 {[%emt 0:00:09]} 27. Qxd3 {[%emt 0:00:08]} Bf4 {[%emt 0:01:30]} 28. Kg1 {[%emt 0:05:17]} Bd6 {[%emt 0:00:37]} 29. a4 {[%emt 0:00:53]} Qe7 {[%emt 0:00:57]} 30. b4 {[%emt 0:02:33]} g5 {[%emt 0:00:49]} 31. Be3 {[%emt 0:01:12]} Qe5 {[%emt 0:00:39]} 32. g3 {[%emt 0:03:45]} h5 {[%emt 0:02:46]} 33. Qd4 {[%emt 0:02:10]} Qe7 {[%emt 0:00:33]} 34. Qd5 {[%emt 0:01:19]} Be5 {[%emt 0:02:24]} 35. Bd4 {[%emt 0:01:22]} Bxd4 {[%emt 0:00:14]} 36. Qxd4 {[%emt 0:00:06]} h4 {[%emt 0:00:07]} 37. gxh4 {[%emt 0:01:17]} gxh4 {[%emt 0:00:08]} 38. Qg4+ {[%emt 0:00:06]} Kh7 {[%emt 0:00:45]} 39. Kg2 {[%emt 0:00:23]} Qf6 {[%emt 0:00:53]} 40. Qe4+ {[%emt 0:00:00]} Kh6 {[%emt 0:00:00]} 41. c4 {[%emt 0:03:55]} Qd8 {[%emt 0:02:46]} 42. Qd5 {[%emt 0:02:26]} Qg8+ {[%emt 0:00:14]} 43. Kf3 {[%emt 0:00:12]} Qg1 {[%emt 0:00:16]} 44. Qxf7 {[%emt 0:02:28]} Qd1+ {[%emt 0:00:18]} 45. Kg2 {[%emt 0:00:10]} Qxa4 {[%emt 0:00:24]} 46. Qe6+ {[%emt 0:02:11]} Kg7 {[%emt 0:00:33]} 47. Qg4+ {[%emt 0:00:06]} Kf7 {[%emt 0:00:06]} 48. b5 {[%emt 0:00:06]} a6 {[%emt 0:00:50]} 49. Qxh4 {[%emt 0:00:42]} axb5 {[%emt 0:00:31]} 50. Qh5+ {[%emt 0:49:26]} Kf6 {[%emt 0:00:13]} 51. Qxb5 {[%emt 0:00:00]} Qa8+ {[%emt 0:00:09]} 52. Qd5 {[%emt 0:00:00]} Qe8 {[%emt 0:00:57]} 53. Qd4+ {[%emt 0:00:00]} Kg5 {[%emt 0:00:14]} 54. Qe3+ {[%emt 0:00:00]} 1-0

[Event "Romanian Women Championship 2024"]
[Site "Eforie Nord"]
[Date "2024.02.27"]
[Round "5.10"]
[White "Paraschiv, Petronela-Alexandra"]
[Black "Bira, Andrada-Paraschiva"]
[Result "1/2-1/2"]
[ECO "D37"]
[WhiteElo "1875"]
[BlackElo "1590"]
[Annotator "NA RC"]
[PlyCount "178"]
[EventDate "2024.02.24"]
[EventType "swiss"]
[EventCountry "ROU"]
[SourceTitle "playchess.com"]
[Source "ChessBase"]
[SourceQuality "1"]
[TimeControl "40/5400+30:900+30"]

1. d4 {[%emt 0:00:05]} Nf6 {[%emt 0:00:13]} 2. Nf3 {[%emt 0:00:04]} e6 {[%emt 0:00:13]} 3. Bf4 {[%emt 0:00:11]} d5 {[%emt 0:00:19]} 4. e3 {[%emt 0:00:36]} c5 {[%emt 0:00:14]} 5. Be2 {[%emt 0:00:39]} Bd6 {[%emt 0:00:36]} 6. dxc5 {[%emt 0:03:58]} Bxc5 {[%emt 0:00:13]} 7. c4 {[%emt 0:05:32]} Nc6 {[%emt 0:00:35]} 8. Nc3 {[%emt 0:02:59]} O-O {[%emt 0:03:42]} 9. O-O {[%emt 0:02:12]} dxc4 {[%emt 0:08:42]} 10. Qxd8 {[%emt 0:07:15]} Rxd8 {[%emt 0:00:21]} 11. Bxc4 {[%emt 0:00:13]} b6 {[%emt 0:01:53]} 12. a3 {[%emt 0:06:03]} Bb7 {[%emt 0:01:43]} 13. Rfd1 {[%emt 0:03:37]} h6 {[%emt 0:00:42]} 14. h3 {[%emt 0:13:47]} Rac8 {[%emt 0:00:38]} 15. Nb5 {[%emt 0:04:07]} Nd5 {[%emt 0:08:27]} 16. Bxd5 {[%emt 0:05:07]} Rxd5 {[%emt 0:03:47]} 17. Rxd5 {[%emt 0:00:57]} exd5 {[%emt 0:00:08]} 18. Rd1 {[%emt 0:00:53]} Rd8 {[%emt 0:00:21]} 19. b4 {[%emt 0:01:48]} Be7 {[%emt 0:01:54]} 20. Nc3 {[%emt 0:02:24]} d4 {[%emt 0:12:01]} 21. exd4 {[%emt 0:08:29]} Bf6 {[%emt 0:00:10]} 22. Be5 {[%emt 0:03:50]} Nxe5 {[%emt 0:01:56]} 23. Nxe5 {[%emt 0:00:50]} Bxe5 {[%emt 0:01:35]} 24. dxe5 {[%emt 0:00:07]} Rxd1+ {[%emt 0:00:07]} 25. Nxd1 {[%emt 0:00:03]} Kf8 {[%emt 0:00:20]} 26. f4 {[%emt 0:03:49]} Ke7 {[%emt 0:00:54]} 27. Ne3 {[%emt 0:00:44]} Ke6 {[%emt 0:01:39]} 28. Kf2 {[%emt 0:02:27]} Ba6 {[%emt 0:02:11]} 29. Kf3 {[%emt 0:02:05]} Bb7+ {[%emt 0:00:14]} 30. Kg4 {[%emt 0:01:59]} g6 {[%emt 0:02:01]} 31. h4 {[%emt 0:00:34]} Ba6 {[%emt 0:00:12]} 32. Kf3 {[%emt 0:00:32]} Bd3 {[%emt 0:00:32]} 33. g3 {[%emt 0:07:12]} Kd7 {[%emt 0:09:21]} 34. Ng4 {[%emt 0:01:40]} h5 {[%emt 0:00:28]} 35. Nf6+ {[%emt 0:04:09]} Kc6 {[%emt 0:03:31]} 36. Ke3 {[%emt 0:03:11]} Bf5 {[%emt 0:00:20]} 37. Kd4 {[%emt 0:00:46]} Be6 {[%emt 0:00:17]} 38. Ne4 {[%emt 0:01:11]} Kb5 {[%emt 0:01:20]} 39. Nc3+ {[%emt 0:00:50]} Kc6 {[%emt 0:00:10]} 40. Ne4 {[%emt 0:00:00]} Kb5 {[%emt 0:00:00]} 41. Nc3+ {[%emt 0:07:43]} Kc6 {[%emt 0:00:20]} 42. b5+ {[%emt 0:01:53]} Kd7 {[%emt 0:00:25]} 43. Ne4 {[%emt 0:00:46]} Ke7 {[%emt 0:00:35]} 44. Nd6 {[%emt 0:01:58]} f5 {[%emt 0:07:47]} 45. Kc3 {[%emt 0:01:58]} Kd7 {[%emt 0:01:01]} 46. Kb4 {[%emt 0:02:04]} Bd5 {[%emt 0:02:00]} 47. a4 {[%emt 0:01:16]} Be6 {[%emt 0:00:18]} 48. a5 {[%emt 0:00:18]} Bd5 {[%emt 0:00:32]} 49. axb6 {[%emt 0:00:43]} axb6 {[%emt 0:00:07]} 50. Kc3 {[%emt 0:00:33]} Be6 {[%emt 0:01:10]} 51. Kd4 {[%emt 0:00:15]} Bg8 {[%emt 0:00:32]} 52. Nc4 {[%emt 0:00:39]} Kc7 {[%emt 0:00:09]} 53. Ne3 {[%emt 0:00:50]} Be6 {[%emt 0:01:11]} 54. Nd5+ {[%emt 0:00:37]} Kb7 {[%emt 0:00:14]} 55. Ne7 {[%emt 0:00:33]} Bf7 {[%emt 0:00:23]} 56. e6 {[%emt 0:01:46]} Bxe6 {[%emt 0:00:21]} 57. Nxg6 {[%emt 0:00:06]} Bd7 {[%emt 0:00:20]} 58. Ne7 {[%emt 0:00:33]} Bxb5 {[%emt 0:00:42]} 59. Nxf5 {[%emt 0:00:07]} Be2 {[%emt 0:00:15]} 60. Kd5 {[%emt 0:01:08]} Kc7 {[%emt 0:00:27]} 61. Nd4 {[%emt 0:00:19]} Bg4 {[%emt 0:00:12]} 62. Ke5 {[%emt 0:00:13]} Kd7 {[%emt 0:00:10]} 63. Kd5 {[%emt 0:01:12]} Bd1 {[%emt 0:00:45]} 64. Ke5 {[%emt 0:00:49]} Bg4 {[%emt 0:00:10]} 65. f5 {[%emt 0:00:41]} Ke7 {[%emt 0:00:18]} 66. Nc6+ {[%emt 0:00:44]} Kf7 {[%emt 0:00:14]} 67. Nd8+ {[%emt 0:00:12]} Ke7 {[%emt 0:00:09]} 68. Nc6+ {[%emt 0:00:49]} Kf7 {[%emt 0:00:07]} 69. f6 {[%emt 0:00:24]} Ke8 {[%emt 0:00:18]} 70. Nd4 {[%emt 0:00:28]} Kf7 {[%emt 0:00:14]} 71. Nb5 {[%emt 0:00:27]} Kf8 {[%emt 0:00:23]} 72. Nd6 {[%emt 0:00:06]} Bh3 {[%emt 0:00:13]} 73. Kf4 {[%emt 0:00:22]} Bf1 {[%emt 0:00:20]} 74. Kg5 {[%emt 0:00:07]} Be2 {[%emt 0:00:09]} 75. Kg6 {[%emt 0:00:17]} b5 {[%emt 0:00:17]} 76. Nxb5 {[%emt 0:01:15]} Bxb5 {[%emt 0:00:09]} 77. Kxh5 {[%emt 0:00:05]} Kf7 {[%emt 0:00:08]} 78. Kg5 {[%emt 0:00:04]} Bd3 {[%emt 0:00:21]} 79. h5 {[%emt 0:01:05]} Be4 {[%emt 0:00:21]} 80. g4 {[%emt 0:01:25]} Bd3 {[%emt 0:00:43]} 81. Kh6 {[%emt 0:01:28]} Kxf6 {[%emt 0:00:09]} 82. g5+ {[%emt 0:00:02]} Kf7 {[%emt 0:00:14]} 83. g6+ {[%emt 0:00:06]} Kg8 {[%emt 0:01:10]} 84. Kg5 {[%emt 0:00:23]} Kg7 {[%emt 0:00:11]} 85. h6+ {[%emt 0:00:12]} Kg8 {[%emt 0:00:06]} 86. g7 {[%emt 0:00:39]} Bc2 {[%emt 0:00:08]} 87. Kf6 {[%emt 0:00:44]} Bd3 {[%emt 0:00:08]} 88. Ke7 {[%emt 0:00:19]} Bc2 {[%emt 0:00:06]} 89. h7+ {[%emt 0:00:37]} Bxh7 {[%emt 0:00:06]} 1/2-1/2

[Event "Romanian Women Championship 2024"]
[Site "Eforie Nord"]
[Date "2024.02.27"]
[Round "5.11"]
[White "Batagan, Ilinca-Petra"]
[Black "Malaieru, Alexandra-Gabriela"]
[Result "1-0"]
[ECO "C63"]
[WhiteElo "1859"]
[BlackElo "1258"]
[Annotator "NA RC"]
[PlyCount "57"]
[EventDate "2024.02.24"]
[EventType "swiss"]
[EventCountry "ROU"]
[SourceTitle "playchess.com"]
[Source "ChessBase"]
[SourceQuality "1"]
[TimeControl "40/5400+30:900+30"]

1. e4 {[%emt 0:00:04]} e5 {[%emt 0:00:08]} 2. Nf3 {[%emt 0:00:08]} Nc6 {[%emt 0:00:15]} 3. Bb5 {[%emt 0:00:25]} f5 {[%emt 0:00:29]} 4. d3 {[%emt 0:04:58]} fxe4 {[%emt 0:03:55]} 5. dxe4 {[%emt 0:00:36]} Nf6 {[%emt 0:01:33]} 6. O-O {[%emt 0:02:40]} Be7 {[%emt 0:02:24]} 7. Bxc6 {[%emt 0:06:55]} bxc6 {[%emt 0:00:20]} 8. Nxe5 {[%emt 0:00:55]} O-O {[%emt 0:03:56]} 9. Nc3 {[%emt 0:01:20]} Bb7 {[%emt 0:02:00]} 10. Be3 {[%emt 0:03:20]} d5 {[%emt 0:02:05]} 11. f3 {[%emt 0:09:50]} c5 {[%emt 0:10:07]} 12. Nxd5 {[%emt 0:04:20]} Nxd5 {[%emt 0:01:06]} 13. exd5 {[%emt 0:00:06]} Qxd5 {[%emt 0:01:21]} 14. Qxd5+ {[%emt 0:00:11]} Bxd5 {[%emt 0:00:06]} 15. Nd7 {[%emt 0:05:53]} Rfe8 {[%emt 0:05:27]} 16. Bxc5 {[%emt 0:03:39]} Bxc5+ {[%emt 0:02:54]} 17. Nxc5 {[%emt 0:00:07]} Rab8 {[%emt 0:07:13]} 18. b3 {[%emt 0:04:18]} Rbd8 {[%emt 0:10:13]} 19. Rfe1 {[%emt 0:01:23]} Kf7 {[%emt 0:11:10]} 20. Rxe8 {[%emt 0:02:04]} Rxe8 {[%emt 0:04:14]} 21. Kf2 {[%emt 0:00:10]} Bc6 {[%emt 0:04:04]} 22. Rd1 {[%emt 0:01:37]} Re5 {[%emt 0:05:31]} 23. Nd3 {[%emt 0:02:21]} Re6 {[%emt 0:04:00]} 24. Re1 {[%emt 0:02:26]} Rd6 {[%emt 0:01:55]} 25. Re5 {[%emt 0:07:05]} Bb7 {[%emt 0:06:24]} 26. Rc5 {[%emt 0:01:25]} c6 {[%emt 0:01:29]} 27. Ra5 {[%emt 0:00:43]} a6 {[%emt 0:00:36]} 28. Ke3 {[%emt 0:01:50]} Re6+ {[%emt 0:01:40]} 29. Kd2 {[%emt 0:06:45]} 1-0

[Event "Romanian Women Championship 2024"]
[Site "Eforie Nord"]
[Date "2024.02.27"]
[Round "5.12"]
[White "Chicarosie, Ioana-Bianca"]
[Black "Ardelean, Lorela-Daniela"]
[Result "1-0"]
[ECO "D11"]
[WhiteElo "1705"]
[BlackElo "1802"]
[Annotator "NA RC"]
[PlyCount "103"]
[EventDate "2024.02.24"]
[EventType "swiss"]
[EventCountry "ROU"]
[SourceTitle "playchess.com"]
[Source "ChessBase"]
[SourceQuality "1"]
[TimeControl "40/5400+30:900+30"]

1. d4 {[%emt 0:00:03]} Nf6 {[%emt 0:01:14]} 2. g3 {[%emt 0:00:05]} d5 {[%emt 0:00:07]} 3. Bg2 {[%emt 0:00:06]} c6 {[%emt 0:00:04]} 4. Nf3 {[%emt 0:00:05]} Bf5 {[%emt 0:00:08]} 5. O-O {[%emt 0:00:32]} e6 {[%emt 0:01:12]} 6. c4 {[%emt 0:00:53]} Bd6 {[%emt 0:00:45]} 7. b3 {[%emt 0:04:43]} Qe7 {[%emt 0:00:06]} 8. Bb2 {[%emt 0:00:46]} Nbd7 {[%emt 0:00:08]} 9. Nc3 {[%emt 0:03:09]} O-O {[%emt 0:01:30]} 10. Nh4 {[%emt 0:00:33]} Bg6 {[%emt 0:03:12]} 11. Nxg6 {[%emt 0:00:26]} hxg6 {[%emt 0:00:41]} 12. e4 dxe4 {[%emt 0:01:32]} 13. Nxe4 {[%emt 0:00:32]} Nxe4 {[%emt 0:00:08]} 14. Bxe4 {[%emt 0:00:05]} Nf6 {[%emt 0:02:37]} 15. Bg2 {[%emt 0:00:41]} Ba3 {[%emt 0:00:11]} 16. Qc1 {[%emt 0:09:53]} Bxb2 {[%emt 0:00:41]} 17. Qxb2 {[%emt 0:00:05]} Rfd8 {[%emt 0:00:26]} 18. b4 {[%emt 0:01:48]} a5 {[%emt 0:01:59]} 19. b5 {[%emt 0:27:16]} cxb5 {[%emt 0:04:04]} 20. cxb5 {[%emt 0:00:42]} Rac8 {[%emt 0:02:04]} 21. Rac1 {[%emt 0:03:37]} Qd7 {[%emt 0:10:19]} 22. Rc5 {[%emt 0:23:04]} Nd5 23. Rfc1 {[%emt 0:02:43]} Nb6 {[%emt 0:16:09]} 24. Qa3 a4 {[%emt 0:00:00]} 25. Rxc8 {[%emt 0:21:13]} Rxc8 {[%emt 0:04:14]} 26. Rxc8+ Qxc8 {[%emt 0:01:50]} 27. Qc5 {[%emt 0:00:00]} Qd8 {[%emt 0:00:30]} 28. Bxb7 {[%emt 0:00:00]} Kh7 {[%emt 0:00:45]} 29. Be4 {[%emt 0:00:00]} Kg8 30. h4 {[%emt 0:00:00]} Qb8 31. Bc2 {[%emt 0:03:00]} Qd8 {[%emt 0:10:05]} 32. a3 {[%emt 0:00:00]} Qb8 {[%emt 0:00:18]} 33. Be4 {[%emt 0:00:00]} Qd8 {[%emt 0:00:30]} 34. Kf1 {[%emt 0:00:00]} Qb8 35. h5 {[%emt 0:02:00]} f5 {[%emt 0:40:31]} 36. Bc6 {[%emt 0:00:00]} Kf7 {[%emt 0:00:00]} 37. hxg6+ {[%emt 0:00:00]} Kf6 {[%emt 0:00:00]} 38. f4 {[%emt 0:01:30]} Nd5 {[%emt 0:00:00]} 39. Bxd5 {[%emt 0:00:00]} exd5 {[%emt 0:00:00]} 40. Qc6+ {[%emt 0:00:00]} Ke7 {[%emt 0:00:00]} 41. Qxd5 {[%emt 0:00:00]} Qh8 {[%emt 0:00:00]} 42. Qb7+ {[%emt 0:01:32]} Kd6 {[%emt 0:00:00]} 43. Qc6+ {[%emt 0:00:07]} Ke7 {[%emt 0:00:00]} 44. Qc7+ {[%emt 0:00:07]} Ke6 {[%emt 0:00:00]} 45. Qe5+ {[%emt 0:00:09]} Kd7 {[%emt 0:00:00]} 46. Qxf5+ {[%emt 0:00:06]} Ke7 {[%emt 0:00:00]} 47. Qc5+ {[%emt 0:00:18]} Kd7 {[%emt 0:00:00]} 48. Qc6+ {[%emt 0:00:21]} Ke7 {[%emt 0:00:00]} 49. Kg2 {[%emt 0:00:49]} Qh6 {[%emt 0:00:00]} 50. b6 {[%emt 0:00:52]} Qh8 {[%emt 0:00:00]} 51. Qc7+ {[%emt 0:17:09]} Ke6 {[%emt 0:00:27]} 52. b7 {[%emt 0:00:30]} 1-0